bitfinex/quotes_SOLUSD_20250902
["timestamp","ask_amount","ask_price","bid_price","bid_amount"]
[1756834553470,0.71,204.81,204.77,12.11181699]
[1756834553676,0.71,204.81,204.76,0.03]
[1756834553877,57.0742664,204.82,204.76,12.14181699]
[1756834554063,0.71,204.8,204.76,12.14181699]
[1756834554566,12.11181699,204.81,204.76,0.03]
[1756834554770,12.82181699,204.81,204.76,13.62559401]
[1756834554966,0.71,204.8,204.76,25.737411]
[1756834555680,0.71,204.79,204.76,0.03]
[1756834556582,0.71,204.78,204.76,0.03]
[1756834556781,12.11181699,204.8,204.76,0.03]
[1756834556983,0.71,204.79,204.76,0.03]
[1756834557357,4.88328938,204.78,204.76,0.03]
[1756834557562,52.17181699,204.77,204.76,0.03]
[1756834557981,40.77,204.77,204.76,0.03]
[1756834558276,52.88181699,204.77,204.76,0.03]
[1756834558861,40.77,204.77,204.76,0.03]
[1756834559061,52.88181699,204.77,204.76,0.03]
[1756834559774,57.76534485,204.77,204.76,0.03]
[1756834559976,158.40972819,204.77,204.74,1e-08]
[1756834560282,158.50673085,204.77,204.73,0.03]
[1756834560479,40.77,204.76,204.73,0.03]
[1756834560654,40.06,204.75,204.73,0.03]
[1756834560858,40.77,204.75,204.73,0.03]
[1756834561083,0.71,204.74,204.73,0.03]
[1756834561671,106.2379112,204.77,204.73,0.03]
[1756834561886,40.77,204.76,204.73,0.03]
[1756834562272,40.77,204.75,204.73,0.03]
[1756834562992,0.71,204.74,204.73,0.03]
[1756834563658,5.59424343,204.74,204.73,0.03]
[1756834565188,112.85320299,204.77,204.73,0.03]
[1756834565189,4.88396088,204.76,204.73,0.03]
[1756834565402,140.70438334,204.77,204.73,12.14181699]
[1756834565692,0.71,204.76,204.73,0.03]
[1756834565896,12.11181699,204.74,204.73,0.03]
[1756834566066,52.17181699,204.74,204.73,0.03]
[1756834566272,52.88181699,204.74,204.73,0.03]
[1756834566566,0.71,204.74,204.73,0.03]
[1756834566773,40.77,204.74,204.73,0.03]
[1756834567686,52.88181699,204.74,204.73,0.03]
[1756834567885,57.76606042,204.74,204.73,0.03]
[1756834568585,45.65424343,204.74,204.73,0.03]
[1756834568791,57.76606042,204.74,204.73,0.03]
[1756834569479,45.65424343,204.74,204.73,0.03]
[1756834569680,57.76606042,204.74,204.73,0.03]
[1756834570562,17.70606042,204.74,204.73,0.03]
[1756834570770,57.76606042,204.74,204.73,0.03]
[1756834572982,17.70606042,204.74,204.73,0.03]
[1756834573166,101.31438334,204.77,204.73,0.03]
[1756834573371,100.64438334,204.77,204.74,12.11181699]
[1756834573567,140.68438334,204.77,204.74,12.11181699]
[1756834573771,140.68438334,204.77,204.73,0.09]
[1756834573995,145.5679403,204.77,204.73,12.14181699]
[1756834574197,157.67975729,204.77,204.73,0.03]
[1756834574499,100.64438334,204.77,204.73,0.03]
[1756834574699,140.68438334,204.77,204.73,12.20181699]
[1756834575002,140.68438334,204.77,204.74,12.11181699]
[1756834575298,100.64438334,204.77,204.76,25.707411]
[1756834575472,100.64438334,204.77,204.76,25.84957257]
[1756834575679,100.64438334,204.77,204.76,13.73775558]
[1756834575872,100.64438334,204.77,204.73,0.03]
[1756834576099,105.52795343,204.77,204.73,0.03]
[1756834576483,118.30977042,204.77,204.73,0.03]
[1756834576696,100.64438334,204.77,204.73,12.14181699]
[1756834577176,105.52797234,204.77,204.73,12.14181699]
[1756834577382,106.19797234,204.77,204.73,0.03]
[1756834578094,40.71,204.76,204.73,0.03]
[1756834578916,0.67,204.75,204.73,0.03]
[1756834579206,12.78181699,204.75,204.73,0.03]
[1756834579380,0.67,204.74,204.73,0.03]
[1756834580109,40.04,204.75,204.73,0.03]
[1756834581504,40.02,204.76,204.73,0.03]
[1756834581712,0.67,204.75,204.73,0.03]
[1756834582694,0.67,204.74,204.73,0.03]
[1756834582894,12.78181699,204.75,204.73,0.03]
[1756834583117,40.69,204.75,204.73,0.03]
[1756834583514,45.57401685,204.75,204.73,0.03]
[1756834583710,106.25813978,204.77,204.73,0.03]
[1756834583895,40.02,204.75,204.73,0.03]
[1756834584095,40.69,204.76,204.73,0.03]
[1756834584420,0.67,204.75,204.73,0.03]
[1756834584616,12.78181699,204.75,204.73,0.03]
[1756834584789,0.67,204.74,204.73,0.03]
[1756834585702,4.88421609,204.75,204.73,0.03]
[1756834585909,0.67,204.74,204.73,0.03]
[1756834586307,40.69,204.74,204.73,0.03]
[1756834586622,52.80181699,204.74,204.73,0.03]
[1756834586822,40.69,204.74,204.73,0.03]
[1756834587625,45.57424343,204.74,204.73,0.03]
[1756834588189,112.91358638,204.77,204.73,0.03]
[1756834588190,100.70438334,204.77,204.73,0.03]
[1756834588390,100.70438334,204.77,204.76,8.03046657]
[1756834588813,101.37438334,204.77,204.74,8.03046657]
[1756834589008,0.67,204.76,204.74,8.03046657]
[1756834589228,0.67,204.76,204.73,0.03]
[1756834589397,0.67,204.75,204.73,0.03]
[1756834589799,0.67,204.74,204.73,0.03]
[1756834590219,40.67,204.76,204.73,0.03]
[1756834590424,45.55380005,204.76,204.73,0.03]
[1756834590603,0.67,204.75,204.73,0.03]
[1756834591205,44.8838407,204.76,204.73,0.03]
[1756834591206,0.67,204.74,204.73,0.03]
[1756834591517,0.67,204.75,204.73,0.03]
[1756834591717,4.88424343,204.74,204.73,0.03]
[1756834592022,5.55406923,204.75,204.73,0.03]
[1756834592618,40.0,204.76,204.73,3.24145766]
[1756834592828,0.67,204.74,204.73,3.24145766]
[1756834593204,40.67,204.74,204.73,0.03]
[1756834594321,100.70438334,204.77,204.73,3.24145766]
[1756834594630,100.70438334,204.77,204.76,16.80705167]
[1756834595203,141.37438334,204.77,204.73,0.03]
[1756834595499,140.70438334,204.77,204.76,3.21145766]
[1756834595900,100.70438334,204.77,204.76,3.21145766]
[1756834596806,101.37438334,204.77,204.74,0.14216157]
[1756834597013,141.35438334,204.77,204.76,3.21145766]
[1756834597217,146.2379112,204.77,204.76,3.21145766]
[1756834598421,141.35438334,204.77,204.76,3.21145766]
[1756834598623,146.23795507,204.77,204.73,0.03]
[1756834598807,145.56795507,204.77,204.76,3.21145766]
[1756834599426,146.23795507,204.77,204.76,3.21145766]
[1756834599630,146.23795507,204.77,204.73,0.03]
[1756834599942,0.67,204.76,204.73,0.03]
[1756834600234,39.98,204.75,204.73,0.03]
[1756834600425,39.98,204.75,204.73,79.73]
[1756834600604,40.65,204.75,204.73,79.73]
[1756834600796,39.98,204.75,204.73,79.73]
[1756834601006,40.65,204.75,204.74,3.21145766]
[1756834602037,0.67,204.75,204.74,3.21145766]
[1756834602246,45.53400488,204.75,204.73,0.03]
[1756834602599,0.69,204.74,204.73,0.03]
[1756834603726,40.65,204.74,204.73,0.03]
[1756834604726,45.53424343,204.74,204.73,0.03]
[1756834607744,48.74570109,204.74,204.72,0.1]
[1756834607905,3.21145766,204.72,204.7,1e-08]
[1756834608108,43.17145766,204.71,204.64,0.1]
[1756834608340,3.21145766,204.68,204.64,0.1]
[1756834608540,43.86145766,204.67,204.64,0.1]
[1756834608716,39.96,204.66,204.64,0.1]
[1756834609047,4.88639139,204.65,204.64,0.1]
[1756834609210,5.57639139,204.65,204.64,0.1]
[1756834610139,4.88639139,204.65,204.64,0.1]
[1756834610810,4.88616418,204.66,204.64,0.1]
[1756834611016,0.69,204.69,204.64,3.31145766]
[1756834611231,0.69,204.69,204.64,0.1]
[1756834611232,40.65,204.68,204.64,0.1]
[1756834611439,3.21145766,204.67,204.64,0.1]
[1756834611609,39.96,204.66,204.64,0.1]
[1756834611805,40.65,204.66,204.64,0.1]
[1756834612011,3.21145766,204.65,204.64,0.1]
[1756834612430,3.90145766,204.65,204.64,0.1]
[1756834613134,5.57639139,204.65,204.64,0.1]
[1756834613328,8.78784905,204.65,204.64,0.1]
[1756834616047,60.94382754,204.65,204.6,0.03]
[1756834616227,3.21145766,204.61,204.58,0.03]
[1756834616445,3.21145766,204.59,204.58,0.03]
[1756834616944,3.90145766,204.59,204.58,0.03]
[1756834617517,8.78928208,204.59,204.58,0.03]
[1756834618523,8.78928208,204.59,204.56,0.1]
[1756834618728,3.21145766,204.57,204.56,0.1]
[1756834619128,3.90145766,204.57,204.56,0.1]
[1756834619547,3.90145766,204.57,204.53,0.1]
[1756834619548,40.63,204.57,204.53,0.1]
[1756834619730,8.09999891,204.56,204.53,0.1]
[1756834620138,48.72999891,204.56,204.53,0.1]
[1756834620742,45.51854125,204.56,204.53,0.1]
[1756834620938,48.72999891,204.56,204.53,0.1]
[1756834621138,4.88854125,204.56,204.53,0.1]
[1756834621344,39.94,204.56,204.54,3.21145766]
[1756834621548,5.57792713,204.59,204.53,0.1]
[1756834621746,0.69,204.59,204.54,3.21145766]
[1756834621951,0.69,204.61,204.56,3.21145766]
[1756834622257,39.94,204.6,204.58,3.21145766]
[1756834622418,40.63,204.59,204.56,3.21145766]
[1756834622625,0.69,204.58,204.55,0.1]
[1756834622948,40.63,204.57,204.55,0.1]
[1756834623450,0.69,204.56,204.55,0.1]
[1756834623626,8.78999891,204.56,204.55,0.1]
[1756834623827,39.94,204.56,204.55,0.1]
[1756834624029,0.69,204.58,204.55,0.1]
[1756834624236,39.94,204.57,204.55,0.1]
[1756834624451,5.57809804,204.58,204.55,0.1]
[1756834624626,39.94,204.57,204.56,3.21145766]
[1756834624825,8.09808783,204.64,204.56,3.21145766]
[1756834625034,40.63,204.63,204.58,3.21145766]
[1756834625224,3.90145766,204.62,204.57,3.21145766]
[1756834625548,3.21145766,204.58,204.55,0.1]
[1756834625723,8.09999891,204.56,204.55,0.1]
[1756834625927,45.51854125,204.56,204.55,0.1]
[1756834626146,5.57854125,204.56,204.55,0.1]
[1756834626352,4.88854125,204.56,204.55,0.1]
[1756834626552,0.69,204.64,204.55,3.47145766]
[1756834626733,27.6,204.63,204.56,13.75559401]
[1756834627051,27.6,204.63,204.58,3.21145766]
[1756834627251,27.6,204.63,204.59,3.21145766]
[1756834627752,5.5771078,204.62,204.57,3.21145766]
[1756834627958,5.5771078,204.62,204.59,3.21145766]
[1756834628136,5.5771078,204.62,204.6,3.21145766]
[1756834628337,5.5771078,204.62,204.56,13.75559401]
[1756834628542,0.69,204.61,204.57,3.21145766]
[1756834628746,0.69,204.6,204.57,3.21145766]
[1756834628925,39.94,204.59,204.58,3.21145766]
[1756834629124,39.94,204.61,204.58,3.21145766]
[1756834629432,39.94,204.61,204.55,0.24216157]
[1756834629433,40.63,204.61,204.55,0.24216157]
[1756834629630,4.88758553,204.6,204.55,0.24216157]
[1756834629851,4.88758553,204.6,204.57,3.21145766]
[1756834630051,0.69,204.59,204.57,3.21145766]
[1756834630645,4.88758553,204.6,204.58,3.21145766]
[1756834630848,5.57758553,204.6,204.58,3.21145766]
[1756834631046,4.88710511,204.63,204.59,3.21145766]
[1756834631257,40.6,204.62,204.6,3.21145766]
[1756834632170,0.66,204.64,204.61,3.21145766]
[1756834632326,0.66,204.64,204.55,84.8487333]
[1756834632327,0.66,204.64,204.63,3.21145766]
[1756834632532,5.54591391,204.67,204.63,3.21145766]
[1756834632764,39.92,204.66,204.56,119.72207872]
[1756834632965,39.92,204.66,204.58,13.59559401]
[1756834633435,5.54591391,204.67,204.58,13.59559401]
[1756834633640,5.54591391,204.67,204.59,0.30216157]
[1756834633839,5.54591391,204.67,204.6,12.84583064]
[1756834634045,44.80615264,204.66,204.65,3.21145766]
[1756834634237,45.46615264,204.66,204.65,3.21145766]
[1756834634839,45.46615264,204.66,204.63,3.21145766]
[1756834635049,45.46615264,204.66,204.64,3.21145766]
[1756834635442,44.80615264,204.66,204.64,3.21145766]
[1756834635633,0.66,204.65,204.64,3.21145766]
[1756834636053,5.54639139,204.65,204.64,3.21145766]
[1756834636667,5.54639139,204.65,204.59,0.14216157]
[1756834636840,0.66,204.65,204.64,3.21145766]
[1756834637155,0.66,204.67,204.64,3.21145766]
[1756834637455,39.92,204.65,204.6,12.84583064]
[1756834637761,39.92,204.64,204.6,13.59559401]
[1756834638455,44.80670505,204.64,204.6,13.59559401]
[1756834638662,44.80670505,204.64,204.63,3.21145766]
[1756834638860,39.92,204.64,204.63,3.21145766]
[1756834639047,39.9,204.64,204.63,3.21145766]
[1756834640549,4.88639901,204.65,204.63,3.21145766]
[1756834640858,39.9,204.64,204.6,26.44142465]
[1756834641034,5.54639901,204.65,204.6,26.44142465]
[1756834641234,39.9,204.64,204.6,26.44142465]
[1756834641476,0.06,204.66,204.61,0.42648471]
[1756834641662,0.06,204.66,204.63,0.14216157]
[1756834641863,0.06,204.66,204.65,16.80705167]
[1756834645064,0.06,204.66,204.65,21.69344306]
[1756834645264,0.06,204.69,204.66,13.59559401]
[1756834645441,0.06,204.71,204.69,13.59559401]
[1756834645645,0.06,204.71,204.7,29.79504388]
[1756834645862,0.06,204.74,204.71,13.59559401]
[1756834646058,0.06,204.74,204.73,3.21145766]
[1756834647452,0.06,204.74,204.73,5.01533284]
[1756834647652,0.06,204.76,204.75,26.0]
[1756834647865,0.06,204.76,204.75,44.61092685]
[1756834649258,0.06,204.76,204.75,49.49493173]
[1756834649458,32.29857612,204.77,204.75,54.81242614]
[1756834649637,32.29857612,204.77,204.76,10.47498882]
[1756834649843,32.29857612,204.77,204.76,24.2127444]
[1756834650248,32.23857612,204.77,204.76,24.2127444]
[1756834650476,32.23857612,204.77,204.76,19.03741156]
[1756834651269,32.23857612,204.77,204.76,23.92117792]
[1756834651651,32.23857612,204.77,204.76,19.03741156]
[1756834651861,32.23857612,204.77,204.76,13.73775558]
[1756834652065,32.23857612,204.77,204.76,18.75308842]
[1756834652246,32.89857612,204.77,204.76,5.01533284]
[1756834652452,32.89857612,204.77,204.72,13.59559401]
[1756834652656,32.23857612,204.77,204.76,5.01533284]
[1756834652864,37.12210398,204.77,204.76,5.01533284]
[1756834653067,32.23857612,204.77,204.76,5.01533284]
[1756834653270,32.89857612,204.77,204.76,5.01533284]
[1756834653462,32.89857612,204.77,204.76,12.11033289]
[1756834655554,37.78210398,204.77,204.76,12.11033289]
[1756834658186,37.78210398,204.77,204.76,12.14033289]
[1756834659387,37.78210398,204.77,204.76,0.03]
[1756834659690,49.89243687,204.77,204.76,0.03]
[1756834659853,89.71243687,204.77,204.76,0.03]
[1756834661056,49.89243687,204.77,204.76,0.03]
[1756834661256,89.71243687,204.77,204.76,0.03]
[1756834662491,49.89243687,204.77,204.76,0.03]
[1756834662696,89.71243687,204.77,204.76,1e-08]
[1756834663197,102.20557966,204.77,204.73,1e-08]
[1756834663498,50.27524677,204.77,204.73,1e-08]
[1756834663661,40.54,204.76,204.73,12.1103329]
[1756834663981,40.54,204.76,204.74,12.11033289]
[1756834664174,0.72,204.75,204.74,12.11033289]
[1756834664489,32.23857612,204.77,204.73,13.59559402]
[1756834664796,12.11033289,204.74,204.73,1e-08]
[1756834664967,51.93033289,204.74,204.71,0.03]
[1756834665295,4.88495921,204.71,204.64,12.11033289]
[1756834665598,52.65033289,204.7,204.64,12.11033289]
[1756834665899,12.11033289,204.7,204.64,12.11033289]
[1756834666197,40.54,204.69,204.64,12.11033289]
[1756834666494,0.72,204.68,204.63,12.11033289]
[1756834666695,12.83033289,204.67,204.61,25.7059269]
[1756834666868,39.82,204.66,204.62,12.11033289]
[1756834667063,40.54,204.66,204.63,12.11033289]
[1756834667264,4.88639139,204.65,204.62,12.11033289]
[1756834667680,39.82,204.64,204.62,12.11033289]
[1756834667876,39.82,204.65,204.63,12.11033289]
[1756834668198,0.72,204.71,204.64,12.11033289]
[1756834668493,39.82,204.7,204.68,12.11033289]
[1756834668695,5.604482,204.73,204.69,12.11033289]
[1756834669012,5.604482,204.73,204.7,12.11033289]
[1756834669193,44.70495698,204.72,204.7,12.11033289]
[1756834669566,0.72,204.71,204.64,0.14216157]
[1756834669762,12.83033289,204.71,204.65,12.11033289]
[1756834669999,0.72,204.7,204.66,12.11033289]
[1756834670300,52.65033289,204.69,204.62,79.7]
[1756834670596,52.65033289,204.69,204.64,12.11033289]
[1756834670778,51.93033289,204.69,204.64,12.11033289]
[1756834671101,12.11033289,204.66,204.56,0.22]
[1756834671394,0.72,204.68,204.56,0.22]
[1756834671395,12.11033289,204.63,204.57,12.11033289]
[1756834671606,52.63033289,204.62,204.56,0.03]
[1756834671899,52.63033289,204.62,204.57,12.11033289]
[1756834672101,0.72,204.61,204.56,0.03]
[1756834672468,0.72,204.6,204.56,12.14033289]
[1756834672669,0.72,204.63,204.58,12.11033289]
[1756834672878,52.63033289,204.62,204.56,0.03]
[1756834673098,39.8,204.61,204.57,12.11033289]
[1756834673396,39.8,204.6,204.57,12.11033289]
[1756834673602,39.8,204.6,204.56,0.03]
[1756834673603,40.52,204.6,204.56,0.03]
[1756834673910,40.52,204.6,204.56,12.14033289]
[1756834674506,0.72,204.59,204.56,0.03]
[1756834675713,44.68769753,204.6,204.56,12.14033289]
[1756834676019,39.8,204.59,204.57,12.11033289]
[1756834676182,5.60745059,204.61,204.57,12.11033289]
[1756834676385,39.8,204.61,204.56,13.76775558]
[1756834676601,39.8,204.61,204.56,13.95775558]
[1756834676785,0.72,204.63,204.6,13.59559401]
[1756834677119,0.72,204.63,204.62,12.11033289]
[1756834677288,0.72,204.63,204.58,13.73775558]
[1756834677481,4.88662349,204.65,204.62,12.11033289]
[1756834677676,4.88662349,204.65,204.58,13.92775558]
[1756834677677,39.8,204.64,204.58,13.92775558]
[1756834677901,39.8,204.65,204.63,12.11033289]
[1756834678220,39.8,204.65,204.58,13.73775558]
[1756834678425,12.11033289,204.59,204.56,0.03]
[1756834678712,51.91033289,204.58,204.56,0.03]
[1756834678924,0.72,204.6,204.56,0.03]
[1756834679087,39.8,204.59,204.56,0.03]
[1756834679276,0.72,204.62,204.56,12.14033289]
[1756834679482,40.52,204.61,204.56,0.03]
[1756834679682,44.68758553,204.6,204.56,12.14033289]
[1756834680015,0.72,204.59,204.56,0.03]
[1756834680193,40.52,204.59,204.56,0.03]
[1756834680396,0.72,204.59,204.56,0.03]
[1756834680594,39.8,204.58,204.56,0.03]
[1756834681111,0.72,204.57,204.56,0.03]
[1756834681282,39.8,204.58,204.56,0.03]
[1756834681491,49.13868826,204.69,204.56,0.03]
[1756834681492,0.06,204.74,204.58,13.59559401]
[1756834681811,2.75181919,204.92,204.85,2.42643075]
[1756834681982,0.2,204.92,204.85,2.42643075]
[1756834682184,26.04,204.87,204.85,2.42643075]
[1756834682382,40.4,204.86,204.85,2.42643075]
[1756834682692,12.17033289,204.91,204.85,2.42643075]
[1756834682897,40.42,204.87,204.85,2.42643075]
[1756834683105,12.11033289,204.9,204.85,2.42643075]
[1756834683278,12.17033289,204.91,204.85,2.42643075]
[1756834683608,41.12,204.87,204.86,3.51337239]
[1756834683807,5.60114414,204.87,204.86,3.51337239]
[1756834684106,45.98114414,204.87,204.86,3.51337239]
[1756834684307,0.06,204.91,204.86,3.51337239]
[1756834684521,0.06,204.91,204.87,3.51337239]
[1756834684701,17.05123878,204.88,204.87,3.51337239]
[1756834684902,17.05123878,204.88,204.85,2.42643075]
[1756834685201,12.11033289,204.86,204.85,1e-08]
[1756834685609,12.11033289,204.86,204.79,2.55055258]
[1756834685610,4.8823357,204.82,204.79,2.55055258]
[1756834685910,12.11033289,204.8,204.79,2.55055258]
[1756834686111,12.11033289,204.8,204.69,12.11033289]
[1756834686112,12.74033289,204.8,204.69,12.11033289]
[1756834686282,12.11033289,204.75,204.69,12.11033289]
[1756834686477,12.11033289,204.75,204.67,0.69]
[1756834686700,12.11033289,204.76,204.7,12.11033289]
[1756834686892,40.38,204.75,204.7,0.69]
[1756834687103,12.11033289,204.79,204.73,12.11033289]
[1756834687305,40.38,204.78,204.73,12.11033289]
[1756834687612,4.88424343,204.74,204.69,12.11033289]
[1756834687906,4.88377037,204.76,204.73,12.11033289]
[1756834688498,40.42,204.75,204.73,12.11033289]
[1756834688904,4.88377037,204.76,204.73,12.11033289]
[1756834689086,4.88377037,204.76,204.74,12.11033289]
[1756834689291,0.63,204.81,204.74,0.69]
[1756834689598,4.88305093,204.79,204.76,12.11033289]
[1756834689795,4.8823357,204.82,204.77,12.11033289]
[1756834690106,4.8823357,204.82,204.8,12.11033289]
[1756834690291,40.42,204.81,204.79,12.11033289]
[1756834690482,40.42,204.8,204.79,12.11033289]
[1756834690884,4.8823357,204.82,204.79,12.11033289]
[1756834691081,40.4,204.81,204.79,12.11033289]
[1756834691294,40.4,204.81,204.77,12.11033289]
[1756834691488,53.14033289,204.81,204.76,12.11033289]
[1756834691693,4.8828125,204.8,204.76,12.11033289]
[1756834691916,4.8828125,204.8,204.77,12.11033289]
[1756834692091,40.38,204.79,204.77,12.11033289]
[1756834692288,53.12033289,204.78,204.67,0.69]
[1756834692486,12.11033289,204.73,204.67,12.80033289]
[1756834692893,12.11033289,204.71,204.67,0.69]
[1756834693417,12.11033289,204.72,204.67,0.69]
[1756834693630,40.4,204.71,204.68,0.69]
[1756834693799,16.99509915,204.72,204.68,0.69]
[1756834694117,40.4,204.71,204.66,0.69]
[1756834694324,40.4,204.71,204.66,12.80033289]
[1756834694611,0.63,204.8,204.7,12.11033289]
[1756834694810,0.63,204.8,204.68,0.69]
[1756834694811,12.11033289,204.72,204.68,0.69]
[1756834695112,12.11033289,204.7,204.64,0.69]
[1756834695416,12.11033289,204.7,204.64,12.80033289]
[1756834695591,16.9957694,204.69,204.64,0.69]
[1756834695797,12.11033289,204.68,204.62,12.11033289]
[1756834695998,12.11033289,204.67,204.61,12.80033289]
[1756834696197,17.09902779,204.69,204.6,12.11033289]
[1756834696403,52.53033289,204.66,204.6,12.11033289]
[1756834696612,40.42,204.65,204.6,12.11033289]
[1756834696793,40.42,204.64,204.6,26.0]
[1756834696998,40.42,204.64,204.61,3.52419292]
[1756834697197,40.42,204.64,204.6,38.80033289]
[1756834697391,40.42,204.64,204.61,3.52479678]
[1756834697605,40.42,204.64,204.6,38.80033289]
[1756834697792,4.88662586,204.65,204.61,4.21492353]
[1756834697998,40.38,204.64,204.61,0.69]
[1756834698200,40.38,204.63,204.62,4.21578392]
[1756834698403,12.11033289,204.65,204.59,12.80033289]
[1756834698604,40.38,204.64,204.6,3.52422154]
[1756834698809,40.38,204.64,204.59,12.80033289]
[1756834699016,40.38,204.64,204.6,3.52452367]
[1756834699195,40.38,204.64,204.59,12.80033289]
[1756834699401,40.38,204.64,204.6,3.52452414]
[1756834699598,40.38,204.64,204.59,12.80033289]
[1756834699911,12.11033289,204.7,204.63,12.11033289]
[1756834700112,40.34,204.69,204.64,12.11033289]
[1756834700323,40.97,204.69,204.64,12.11033289]
[1756834700689,40.34,204.69,204.64,12.11033289]
[1756834700892,40.34,204.69,204.65,0.69]
[1756834701090,40.34,204.69,204.66,3.52253429]
[1756834701316,0.63,204.75,204.67,4.21255373]
[1756834701317,40.34,204.68,204.67,4.21255373]
[1756834701530,4.88424343,204.74,204.67,12.80033289]
[1756834701723,40.36,204.73,204.67,12.80033289]
[1756834702119,40.36,204.73,204.69,12.11033289]
[1756834702298,16.99457632,204.74,204.68,12.11033289]
[1756834702501,40.34,204.73,204.68,12.11033289]
[1756834702703,16.99457632,204.74,204.69,12.11033289]
[1756834702914,5.51424343,204.74,204.69,12.11033289]
[1756834703112,40.32,204.73,204.65,0.69]
[1756834703426,12.11033289,204.69,204.61,0.69]
[1756834703731,40.34,204.68,204.64,12.11033289]
[1756834703911,17.62457632,204.74,204.67,12.11033289]
[1756834704112,52.45033289,204.73,204.65,0.69]
[1756834704317,52.45033289,204.73,204.67,12.11033289]
[1756834704508,40.34,204.73,204.66,12.11033289]
[1756834704704,12.11033289,204.68,204.61,0.69]
[1756834704929,32.28,204.76,204.67,12.11033289]
[1756834705134,4.88400488,204.75,204.73,12.11033289]
[1756834705434,4.88400488,204.75,204.72,12.11033289]
[1756834705632,40.62,204.74,204.72,12.11033289]
[1756834705834,4.88400488,204.75,204.72,12.11033289]
[1756834706135,32.28,204.76,204.73,12.11033289]
[1756834706310,40.6,204.75,204.73,12.11033289]
[1756834706510,40.6,204.75,204.67,0.69]
[1756834706710,32.28,204.76,204.74,12.11033289]
[1756834706916,32.28,204.76,204.75,12.11033289]
[1756834707109,77.76376636,204.76,204.69,13.59559401]
[1756834707322,77.76376636,204.76,204.7,3.52151296]
[1756834707604,86.42417099,204.76,204.71,8.03040463]
[1756834707805,0.63,204.75,204.71,8.03040463]
[1756834708010,40.62,204.74,204.73,8.03040463]
[1756834708209,37.16376636,204.76,204.73,8.03040463]
[1756834708411,32.28,204.76,204.75,8.03040463]
[1756834708629,72.88,204.76,204.75,12.23818471]
[1756834708829,32.28,204.76,204.75,12.23818471]
[1756834709042,73.0,204.76,204.75,8.72040463]
[1756834709233,73.0,204.76,204.75,8.03040463]
[1756834709533,32.28,204.76,204.75,8.03040463]
[1756834709734,32.28,204.76,204.75,8.72040463]
[1756834709916,32.28,204.76,204.75,25.83293978]
[1756834710121,67.32,204.76,204.75,30.71694466]
[1756834710322,32.28,204.76,204.75,30.71694466]
[1756834710513,0.06,204.82,204.78,26.0]
[1756834710716,0.06,204.82,204.81,8.03040463]
[1756834710935,40.76,204.82,204.81,8.03040463]
[1756834711237,0.06,204.82,204.79,0.69]
[1756834711431,40.8,204.82,204.81,8.03040463]
[1756834711625,40.8,204.82,204.81,22.31599864]
[1756834711626,0.06,204.82,204.81,22.31599864]
[1756834711842,40.78,204.82,204.81,22.31599864]
[1756834712037,40.78,204.82,204.81,14.28559401]
[1756834712242,40.78,204.82,204.81,22.31599864]
[1756834712445,40.78,204.82,204.81,8.72040463]
[1756834712739,0.06,204.82,204.81,8.72040463]
[1756834713041,0.06,204.82,204.81,13.60297872]
[1756834713428,40.8,204.82,204.81,8.72040463]
[1756834713734,40.8,204.82,204.81,8.03040463]
[1756834715039,54.34289163,204.82,204.75,8.03040463]
[1756834715245,54.34289163,204.82,204.73,0.69]
[1756834715246,8.03040463,204.81,204.73,0.69]
[1756834715540,8.66040463,204.8,204.74,8.03040463]
[1756834715727,0.63,204.8,204.74,8.03040463]
[1756834715921,8.66040463,204.8,204.74,8.03040463]
[1756834716139,8.66040463,204.8,204.73,26.0]